fUST/lending_fUST_20260113
["ID","MTS","AMOUNT","RATE_DAILY","PERIOD"]
[401486167,1768261841035,-1000.0,0.00014247,2]
[401486168,1768261841043,-250.0,0.00014247,2]
[401486169,1768261841052,-1000.0,0.00014247,2]
[401486170,1768261841063,-1000.0,0.00014247,2]
[401486171,1768261841072,-1000.0,0.00014247,2]
[401486172,1768261841081,-1002.56553603,0.00014247,2]
[401486173,1768261841089,-1029.61129365,0.00014247,2]
[401486174,1768261841098,-1000.0,0.00014247,2]
[401486175,1768261841107,-1000.0,0.00014247,2]
[401486176,1768261841116,-1000.0,0.00014247,2]
[401486177,1768261841124,-276.29994154,0.00014247,2]
[401486178,1768261841134,-1000.0,0.00014247,2]
[401486179,1768261841143,-1000.512985,0.00014247,2]
[401486180,1768261841151,-1000.0,0.00014247,2]
[401486181,1768261841160,-1000.0,0.00014247,2]
[401486182,1768261841169,-1000.0,0.00014247,2]
[401486183,1768261841178,-1000.0,0.00014247,2]
[401486184,1768261841187,-1000.0,0.00014247,2]
[401486185,1768261841195,-1000.0,0.00014247,2]
[401486186,1768261841204,-875.76793412,0.00014247,2]
[401486187,1768261841213,-500.0,0.00014247,2]
[401486188,1768261841222,-1000.0,0.00014247,2]
[401486189,1768261841230,-999.83703447,0.00014247,2]
[401486190,1768261841239,-1000.0,0.00014247,2]
[401486191,1768261841248,-1014.57441802,0.00014247,2]
[401486192,1768261841257,-1000.0,0.00014247,2]
[401486193,1768261841266,-1000.0,0.00014247,2]
[401486194,1768261841275,-1000.0,0.00014247,2]
[401486195,1768261841283,-1138.41119879,0.00014247,2]
[401486196,1768261841292,-1000.0,0.00014247,2]
[401486197,1768261841301,-1000.0,0.00014247,2]
[401486198,1768261841310,-1000.0,0.00014247,2]
[401486199,1768261841319,-1000.0,0.00014247,2]
[401486200,1768261841328,-1000.0,0.00014247,2]
[401486201,1768261841338,-1000.0,0.00014247,2]
[401486202,1768261841347,-1000.0,0.00014247,2]
[401486203,1768261841356,-346.05518507,0.00014247,2]
[401486204,1768261841366,-646.68328603,0.00014247,2]
[401486205,1768261841376,-1000.0,0.00014247,2]
[401486206,1768261841385,-1000.0,0.00014247,2]
[401486207,1768261841395,-1006.00253074,0.00014247,2]
[401486208,1768261841405,-1000.0,0.00014247,2]
[401486209,1768261841414,-1000.0,0.00014247,2]
[401486210,1768261841422,-1000.0,0.00014247,2]
[401486211,1768261841432,-504.59320272,0.00014368,2]
[401486212,1768261841441,-1500.0,0.00014368,2]
[401486213,1768261841450,-1500.0,0.00014368,2]
[401486214,1768261841459,-1500.0,0.00014368,2]
[401486215,1768261841468,-1500.0,0.00014368,2]
[401486216,1768261841476,-1500.0,0.00014368,2]
[401486217,1768261841485,-423.32811707,0.00014368,2]
[401486218,1768261841494,-500.80134157,0.00014368,2]
[401486219,1768261841503,-1500.0,0.00014368,2]
[401486220,1768261841513,-1603.18109463,0.00014368,2]
[401486221,1768261841522,-401.64301006,0.00014368,2]
[401486222,1768261841531,-1177.20505665,0.00014368,2]
[401486223,1768261841540,-1485.3091038,0.00014368,2]
[401486224,1768261841549,-1500.0,0.00014368,2]
[401486225,1768261841558,-763.96834089,0.00014368,2]
[401486226,1768261841568,-500.0,0.00014368,2]
[401486227,1768261841577,-1500.0,0.00014368,2]
[401486228,1768261841586,-1000.0,0.00014368,2]
[401486229,1768261841595,-1500.0,0.00014368,2]
[401486230,1768261841603,-1500.0,0.00014368,2]
[401486231,1768261841612,-1500.0,0.00014368,2]
[401486232,1768261841621,-1500.0,0.00014368,2]
[401486233,1768261841630,-1500.0,0.00014368,2]
[401486234,1768261841638,-1121.35319303,0.00014368,2]
[401486235,1768261841647,-1500.0,0.00014368,2]
[401486236,1768261841656,-1500.0,0.00014368,2]
[401486237,1768261841665,-1500.0,0.00014368,2]
[401486238,1768261841674,-1500.0,0.00014368,2]
[401486239,1768261841683,-1000.0,0.00014368,2]
[401486240,1768261841692,-1500.0,0.00014368,2]
[401486241,1768261841700,-355.93714829,0.00014378,2]
[401486242,1768261841710,-5000.0,0.0001451,2]
[401486243,1768261841719,-100000.0,0.0001459,2]
[401486244,1768261841728,-500.0,0.00014767,2]
[401486245,1768261841737,-500.0,0.00014767,2]
[401486246,1768261841745,-500.0,0.00014767,2]
[401486247,1768261841754,-500.0,0.00014767,2]
[401486248,1768261841763,-500.0,0.00014767,2]
[401486249,1768261841772,-500.0,0.00014767,2]
[401486250,1768261841781,-500.0,0.00014767,2]
[401486251,1768261841790,-500.0,0.00014767,2]
[401486252,1768261841800,-500.0,0.00014767,2]
[401486253,1768261841808,-500.0,0.00014767,2]
[401486254,1768261841817,-500.0,0.00014767,2]
[401486255,1768261841826,-500.0,0.00014767,2]
[401486256,1768261841835,-364.86992356,0.00014767,2]
[401486257,1768261841844,-500.0,0.00014795,2]
[401486258,1768261841853,-1000.0,0.00014795,2]
[401486259,1768261841863,-1500.0,0.00014795,2]
[401486260,1768261841872,-1500.0,0.00014795,2]
[401486261,1768261841881,-158.4999436,0.00014795,2]
[401486262,1768261841890,-575.12204215,0.00014795,2]
[401486263,1768261841899,-1000.0,0.00014795,2]
[401486264,1768261841908,-500.0,0.00014795,2]
[401486265,1768261841918,-1500.0,0.00014795,2]
[401486266,1768261841926,-1500.0,0.00014795,2]
[401486267,1768261841936,-1500.0,0.00014795,2]
[401486268,1768261841945,-675.05887209,0.00014795,2]
[401486269,1768261841954,-1121.58832465,0.00014795,2]
[401486270,1768261842055,-1500.0,0.00014795,2]
[401486271,1768261842065,-1500.0,0.00014795,2]
[401486272,1768261842074,-1500.0,0.00014795,2]
[401486273,1768261842083,-964.41428729,0.00014795,2]
[401486274,1768261842092,-1500.0,0.00014795,2]
[401486275,1768261842101,-1500.0,0.00014795,2]
[401486276,1768261842110,-1500.0,0.00014795,2]
[401486277,1768261842119,-1500.0,0.00014795,2]
[401486278,1768261842128,-1500.0,0.00014795,2]
[401486279,1768261842137,-710.84440634,0.00014795,2]
[401486280,1768261842147,-1500.0,0.00014795,2]
[401486281,1768261842156,-1500.0,0.00014795,2]
[401486282,1768261842165,-1500.0,0.00014795,2]
[401486283,1768261842174,-1500.0,0.00014795,2]
[401486284,1768261842183,-1500.0,0.00014795,2]
[401486285,1768261842192,-1500.0,0.00014795,2]
[401486286,1768261842201,-500.0,0.00014795,2]
[401486287,1768261842209,-1509.97698878,0.00014795,2]
[401486288,1768261842218,-1500.0,0.00014795,2]
[401486289,1768261842227,-1500.0,0.00014795,2]
[401486290,1768261842236,-1500.0,0.00014795,2]
[401486291,1768261842245,-151.48350527,0.000149,2]
[401486292,1768261842253,-151.48350527,0.000149,2]
[401486293,1768261842262,-500.0,0.00014916,2]
[401486294,1768261842271,-155.72124395,0.00014916,2]
[401486295,1768261842279,-500.0,0.00014916,2]
[401486296,1768261842288,-2000.0,0.00014916,2]
[401486297,1768261842296,-500.0,0.00014916,2]
[401486298,1768261842305,-2000.0,0.00014916,2]
[401486299,1768261842314,-2000.0,0.00014916,2]
[401486300,1768261842322,-2000.0,0.00014916,2]
[401486301,1768261842332,-2000.0,0.00014916,2]
[401486302,1768261842340,-1466.62413338,0.00014916,2]
[401486303,1768261842349,-2000.0,0.00014916,2]
[401486304,1768261842358,-2000.0,0.00014916,2]
[401486305,1768261842367,-2000.0,0.00014916,2]
[401486306,1768261842375,-2000.0,0.00014916,2]
[401486307,1768261842384,-2000.0,0.00014916,2]
[401486308,1768261842394,-1113.36442406,0.00014916,2]
[401486309,1768261842402,-2000.0,0.00014916,2]
[401486310,1768261842411,-587.0,0.00015008,2]
[401486311,1768261842420,-1000.0,0.00015342,2]
[401486312,1768261842429,-1000.0,0.00015342,2]
[401486313,1768261842437,-2000.0,0.00015342,2]
[401486314,1768261842446,-500.7387933,0.00015342,2]
[401486315,1768261842455,-500.0,0.00015342,2]
[401486316,1768261842464,-1026.41190133,0.00015342,2]
[401486317,1768261842474,-507.57819343,0.00015342,2]
[401486318,1768261842483,-2000.0,0.00015342,2]
[401486319,1768261842492,-1000.0,0.00015342,2]
[401486320,1768261842501,-2000.0,0.00015342,2]
[401486321,1768261842510,-737.22168392,0.00015342,2]
[401486322,1768261842519,-1648.74912763,0.00015342,2]
[401486323,1768261842528,-2000.0,0.00015342,2]
[401486324,1768261842537,-967.72472625,0.00015342,2]
[401486325,1768261842545,-2000.0,0.00015342,2]
[401486326,1768261842554,-2000.0,0.00015342,2]
[401486328,1768261842563,-2000.0,0.00015342,2]
[401486329,1768261842572,-517.83301398,0.00015342,2]
[401486330,1768261842581,-500.0,0.00015342,2]
[401486331,1768261842590,-2000.0,0.00015342,2]
[401486332,1768261842599,-374.68815725,0.00015464,2]
[401486333,1768261842608,-2500.0,0.00015464,2]
[401486334,1768261842617,-2500.0,0.00015464,2]
[401486335,1768261842625,-2500.0,0.00015464,2]
[401486336,1768261842634,-2500.0,0.00015464,2]
[401486337,1768261842643,-2500.0,0.00015464,2]
[401486338,1768261842652,-1397.40421659,0.00015464,2]
[401486339,1768261842660,-2500.0,0.00015464,2]
[401486340,1768261842670,-2500.0,0.00015464,2]
[401486341,1768261842679,-2500.0,0.00015464,2]
[401486342,1768261842688,-2500.0,0.00015464,2]
[401486343,1768261842696,-864.0,0.00015508,2]
[401486344,1768261842705,-202.30233565,0.0001589,2]
[401486345,1768261842715,-1000.0,0.0001589,2]
[401486347,1768261842724,-2500.0,0.0001589,2]
[401486348,1768261842733,-2500.0,0.0001589,2]
[401486349,1768261842742,-1090.98190772,0.0001589,2]
[401486350,1768261842751,-231.95532903,0.0001589,2]
[401486351,1768261842760,-1000.0,0.0001589,2]
[401486352,1768261842769,-2000.0,0.0001589,2]
[401486353,1768261842779,-6095.52266173,0.00015936,2]
[401486354,1768261842788,-500.0,0.00016012,2]
[401486355,1768261842797,-3000.0,0.00016012,2]
[401486356,1768261842805,-1664.74090695,0.00016012,2]
[401486357,1768261842814,-638.85906661,0.00016012,2]
[401486358,1768261842823,-3000.0,0.00016012,2]
[401486359,1768261842832,-3000.0,0.00016012,2]
[401486360,1768261842841,-2500.0,0.00016012,2]
[401486361,1768261842850,-3000.0,0.00016012,2]
[401486362,1768261842858,-3000.0,0.00016012,2]
[401486363,1768261842867,-161.900775,0.00016312,2]
[401486364,1768261842876,-410.23264548,0.00016378,2]
[401486365,1768261842885,-500.0,0.00016438,2]
[401486366,1768261842894,-3000.0,0.00016438,2]
[401486367,1768261842903,-823.0,0.00016467,2]
[401486368,1768261842912,-1000.0,0.0001656,2]
[401486369,1768261842921,-2500.0,0.0001656,2]
[401486370,1768261842929,-3033.9237819,0.0001656,2]
[401486371,1768261842938,-3500.0,0.0001656,2]
[401486372,1768261842947,-228.70879455,0.00016648,7]
[401486373,1768261842956,-1041.66666667,0.00016879,2]
[401486374,1768261842965,-3500.0,0.00016986,2]
[401486375,1768261842974,-1000.0,0.00017059,2]
[401486376,1768261842986,-1000.0,0.00017108,2]
[401486377,1768261842996,-2844.5358916,0.00017409,2]
[401486378,1768261843005,-5000.0,0.00017412,2]
[401486379,1768261843014,-1012.33286536,0.00017534,2]
[401486380,1768261843025,-2844.5358916,0.00017559,2]
[401486381,1768261843034,-151.0,0.00017729,2]
[401486382,1768261843043,-2844.5358916,0.00018056,2]
[401486383,1768261843054,-1152.0,0.00018069,2]
[401486384,1768261843062,-151.0,0.00018159,2]
[401486385,1768261843071,-2844.5358916,0.00018338,2]
[401486386,1768261843079,-728.0,0.0001835,2]
[401486387,1768261843088,-269.0,0.0001835,2]
[401486388,1768261843097,-464.52814268,0.00018378,2]
[401486389,1768261843108,-2844.5358916,0.00018403,2]
[401486390,1768261843116,-151.0,0.00018589,2]
[401486391,1768261843125,-728.0,0.0001867,2]
[401486392,1768261843134,-1000.0,0.00018765,2]
[401486393,1768261843143,-244.0,0.00018765,2]
[401486394,1768261843152,-2844.5358916,0.0001884,2]
[401486395,1768261843161,-303.10001603,0.000189,2]
[401486396,1768261843170,-303.10001603,0.000189,2]
[401486397,1768261843179,-2398.4119403,0.00018911,2]
[401486398,1768261843188,-181.08010149,0.00018911,2]
[401486399,1768261843198,-187.78006525,0.00018911,2]
[401486400,1768261843207,-194.72792766,0.00018911,2]
[401486401,1768261843216,-201.93286099,0.00018911,2]
[401486402,1768261843225,-209.40437684,0.00018911,2]
[401486403,1768261843234,-217.15233878,0.00018911,2]
[401486404,1768261843243,-496.47127164,0.00018911,2]
[401486405,1768261843253,-225.18697532,0.00018911,2]
[401486406,1768261843262,-233.51889341,0.00018911,2]
[401486407,1768261843271,-242.15909246,0.00018911,2]
[401486408,1768261843279,-251.11897888,0.00018911,2]
[401486409,1768261843288,-260.4103811,0.00018911,2]
[401486410,1768261843297,-270.0455652,0.00018911,2]
[401486411,1768261843305,-280.03725112,0.00018911,2]
[401486412,1768261843314,-290.39862941,0.00018911,2]
[401486413,1768261843323,-301.1433787,0.00018911,2]
[401486414,1768261843332,-160.0,0.0001899,2]
[401486415,1768261843342,-2844.5358916,0.00019,2]
[401486416,1768261843350,-151.0,0.00019019,2]
[401486417,1768261843360,-303.10001603,0.00019089,2]
[401486418,1768261843369,-303.10001603,0.00019089,2]
[401486419,1768261843378,-352.88,0.00019178,2]
[401486420,1768261843387,-5023.0,0.00019178,10]
[401486421,1768261843395,-2844.5358916,0.00019196,2]
[401486422,1768261843404,-303.10001603,0.00019278,2]
[401486423,1768261843413,-454.53633737,0.00019278,2]
[401486424,1768261843422,-728.0,0.00019358,2]
[401486425,1768261843430,-6095.52266173,0.00019372,2]
[401486426,1768261843439,-728.0,0.00019418,2]
[401486427,1768261843448,-151.0,0.00019449,2]
[401486428,1768261843457,-2487.15318209,0.00019459,2]
[401486429,1768261843466,-514.84070869,0.00019459,2]
[401486430,1768261843475,-303.10001603,0.00019467,2]
[401486431,1768261843483,-17700.54,0.000195,2]
[401486432,1768261843492,-1947.61259727,0.00019551,2]
[401486433,1768261843501,-160.0,0.0001963,2]
[401486434,1768261843510,-728.0,0.0001963,2]
[401486435,1768261843519,-2844.53589163,0.00019653,2]
[401486436,1768261843527,-303.10001603,0.00019656,2]
[401486437,1768261843536,-728.0,0.00019709,2]
[401486438,1768261843546,-250.0,0.00019726,2]
[401486439,1768261843555,-628.0,0.00019731,2]
[401486440,1768261843564,-1366.0,0.00019731,2]
[401486441,1768261843572,-2147.0,0.00019731,2]
[401486442,1768261843581,-728.0,0.00019738,2]
[401486443,1768261843590,-13357.57180481,0.00019778,2]
[401486444,1768261843598,-366.7697053,0.00019782,2]
[401486445,1768261843608,-54418.034962,0.00019782,2]
[401486446,1768261843617,-841.1943152,0.00019782,2]
[401486447,1768261843626,-3016.1375088,0.00019782,2]
[401486448,1768261843635,-9196.2991156,0.00019782,2]
[401486449,1768261843644,-542316.5144098,0.00019821,2]
[401486450,1768261843652,-1613.0,0.00019826,2]
[401486451,1768261843661,-454.65002402,0.00019845,4]
[401486452,1768261843670,-609.0,0.0001986,5]
[401486453,1768261843679,-1166.0,0.0001986,5]
[401486454,1768261843688,-3197.73190532,0.00019878,2]
[401486455,1768261843697,-2045.65484897,0.00019878,2]
[401486456,1768261843705,-5679.17186386,0.00019878,2]
[401486457,1768261843714,-4598.12068678,0.00019878,2]
[401486458,1768261843723,-356.44051638,0.00019878,2]
[401486459,1768261843732,-1424.33630345,0.00019878,2]
[401486460,1768261843741,-515.50041921,0.00019878,2]
[401486461,1768261843750,-151.0,0.00019879,2]
[401486462,1768261843759,-728.0,0.0001991,2]
[401486463,1768261843768,-306920.57264364,0.0001995,2]
[401486464,1768261843785,-5247.8831583,0.0001995,2]
[401486465,1768261843795,-373930.25983553,0.0001995,2]
[401486466,1768261843806,-20617.38448414,0.0001995,2]
[401486467,1768261843817,-19283.52023384,0.0001995,2]
[401486468,1768261843828,-491.6698901,0.0001995,2]
[401486469,1768261843838,-587.88689563,0.0001995,2]
[401486470,1768261843930,-729.99132855,0.0001995,2]
[401486471,1768261843941,-724.65357532,0.0001995,2]
[401486472,1768261843952,-1554.47805157,0.0001995,2]
[401486473,1768261843963,-19050.72804596,0.0001995,2]
[401486488,1768261846056,-459.3102377,0.00012465,2]
[401486489,1768261846066,-500.0,0.00012465,2]
[401486490,1768261846075,-500.0,0.00012465,2]
[401486491,1768261846084,-500.0,0.00012465,2]
[401486492,1768261846093,-500.0,0.00012465,2]
[401486493,1768261846102,-500.0,0.00012465,2]
[401486495,1768261846111,-241.66562874,0.00012465,2]
[401486496,1768261846120,-500.0,0.00012465,2]
[401486497,1768261846129,-500.0,0.00012465,2]
[401486498,1768261846138,-500.0,0.00012465,2]
[401486499,1768261846146,-500.0,0.00012465,2]
[401486500,1768261846155,-500.0,0.00012465,2]
[401486501,1768261846164,-500.0,0.00012465,2]
[401486502,1768261846172,-500.0,0.00012465,2]
[401486503,1768261846181,-500.0,0.00012465,2]
[401486504,1768261846190,-500.0,0.00016438,2]
[401486505,1768261846199,-500.0,0.00016438,2]
[401486506,1768261846208,-277.59258088,0.00016438,2]
[401486507,1768261846216,-3557.43412074,0.0001995,2]
[401486508,1768261846908,-360.40293502,0.0001995,2]
[401486509,1768262431001,200.0,0.00024117,120]
[401486511,1768262491017,200.0,0.00024794,120]
[401486512,1768262731044,200.0,0.0002461,120]
[401486513,1768262790575,200.0,0.00029252,120]
[401486514,1768263030702,200.0,0.00028414,120]
[401486534,1768263032141,-155.0,0.0001,2]
[401486536,1768263032150,-138.00822947,0.0001,2]
[401486541,1768263032197,-421.99177053,0.0001,2]
[401486543,1768263032207,-302.53782459,0.00010554,2]
[401486545,1768263032216,-242.62960488,0.00011609,2]
[401486547,1768263032228,-1910.90076114,0.00011609,2]
[401486548,1768263032237,-175.804,0.00012217,2]
[401486549,1768263032247,-500.0,0.00012364,2]
[401486550,1768263032256,-321.51716639,0.00012364,2]
[401486551,1768263032266,-500.0,0.00012364,2]
[401486553,1768263032275,-500.0,0.00012364,2]
[401486554,1768263032284,-500.0,0.00012364,2]
[401486555,1768263032293,-500.0,0.00012364,2]
[401486556,1768263032303,-500.0,0.00012364,2]
[401486557,1768263032312,-300.0,0.00012364,2]
[401486558,1768263032322,-363.0,0.00012364,2]
[401486559,1768263032334,-26282.14978518,0.00012365,2]
[401486592,1768263039118,-500.0,0.00012364,2]
[401486594,1768263039129,-500.0,0.00012364,2]
[401486596,1768263039139,-500.0,0.00012364,2]
[401486599,1768263039149,-500.0,0.00012364,2]
[401486602,1768263039161,-500.0,0.00012364,2]
[401486604,1768263039172,-250.44659614,0.00012364,2]
[401486607,1768263039184,-500.0,0.00012364,2]
[401486608,1768263039194,-300.51356093,0.00012364,2]
[401486610,1768263039204,-500.0,0.00012364,2]
[401486612,1768263039214,-500.0,0.00012364,2]
[401486614,1768263039224,-500.0,0.00012364,2]
[401486616,1768263039234,-500.0,0.00012364,2]
[401486618,1768263039243,-500.0,0.00012364,2]
[401486620,1768263039253,-210.13146524,0.00012364,2]
[401486622,1768263039263,-500.0,0.00012364,2]
[401486624,1768263039272,-500.0,0.00012364,2]
[401486626,1768263039281,-500.0,0.00012364,2]
[401486628,1768263039291,-500.0,0.00012364,2]
[401486630,1768263039300,-500.0,0.00012364,2]
[401486632,1768263039310,-500.0,0.00012364,2]
[401486634,1768263039319,-500.0,0.00012364,2]
[401486636,1768263039328,-500.0,0.00012364,2]
[401486638,1768263039339,-500.0,0.00012364,2]
[401486640,1768263039351,-380.74264675,0.00012364,2]
[401486642,1768263039361,-609.35537893,0.00012364,2]
[401486644,1768263039370,-500.0,0.00012364,2]
[401486646,1768263039380,-500.0,0.00012364,2]
[401486648,1768263039391,-500.0,0.00012364,2]
[401486649,1768263039401,-359.91505377,0.00012364,2]
[401486651,1768263039411,-500.0,0.00012364,2]
[401486653,1768263039421,-500.0,0.00012364,2]
[401486655,1768263039431,-500.0,0.00012364,2]
[401486657,1768263039441,-500.0,0.00012364,2]
[401486658,1768263039451,-500.0,0.00012364,2]
[401486660,1768263039460,-500.0,0.00012364,2]
[401486662,1768263039470,-973717.85021482,0.00012365,2]
[401486664,1768263039480,-151.0,0.000124,2]
[401486666,1768263039490,-151.0,0.000124,2]
[401486668,1768263039499,-151.0,0.000124,2]
[401486670,1768263039508,-151.0,0.000124,2]
[401486671,1768263039518,-151.0,0.000124,2]
[401486672,1768263039527,-151.0,0.000124,2]
[401486673,1768263039536,-151.0,0.000124,2]
[401486674,1768263039546,-151.0,0.000124,2]
[401486675,1768263039556,-533.59953373,0.00012465,2]
[401486676,1768263039565,-200.0,0.00012465,2]
[401486677,1768263039574,-214.32,0.00012465,2]
[401486678,1768263039585,-250.0,0.00012471,2]
[401486679,1768263039595,-151.0,0.000125,2]
[401486680,1768263039604,-151.0,0.000125,2]
[401486681,1768263039613,-151.0,0.000125,2]
[401486682,1768263039623,-151.0,0.000125,2]
[401486683,1768263039633,-151.0,0.000125,2]
[401486684,1768263039642,-151.0,0.000125,2]
[401486685,1768263039653,-151.0,0.000125,2]
[401486686,1768263039663,-151.0,0.000125,2]
[401486687,1768263039673,-151.0,0.000125,2]
[401486688,1768263039682,-151.0,0.000125,2]
[401486689,1768263039692,-356.99463302,0.00012554,2]
[401486690,1768263039701,-300.0,0.00012713,2]
[401486691,1768263039710,-300.0,0.00012713,2]
[401486692,1768263039721,-300.0,0.00012713,2]
[401486693,1768263039730,-300.0,0.00012713,2]
[401486694,1768263039739,-300.0,0.00012713,2]
[401486695,1768263039749,-300.0,0.00012713,2]
[401486696,1768263039758,-300.0,0.00012713,2]
[401486697,1768263039768,-300.0,0.00012713,2]
[401486698,1768263039778,-300.0,0.00012713,2]
[401486699,1768263039789,-300.0,0.00012713,2]
[401486700,1768263039800,-300.0,0.00012713,2]
[401486701,1768263039809,-300.0,0.00012713,2]
[401486702,1768263039819,-300.0,0.00012713,2]
[401486703,1768263039829,-300.0,0.00012713,2]
[401486704,1768263039838,-300.0,0.00012713,2]
[401486705,1768263039848,-600.0,0.00012713,2]
[401486706,1768263039857,-214.32301538,0.00012739,2]
[401486707,1768263039866,-6095.52266178,0.000129,2]
[401486709,1768263039875,-7143.91308147,0.00013,2]
[401486711,1768263039885,-10801.6433042,0.00013145,2]
[401486713,1768263039893,-500.0,0.00013273,2]
[401486715,1768263039904,-500.0,0.00013273,2]
[401486716,1768263039914,-500.0,0.00013273,2]
[401486718,1768263039923,-290.33203274,0.00013273,2]
[401486720,1768263039939,-500.0,0.00013273,2]
[401486722,1768263039948,-500.0,0.00013273,2]
[401486724,1768263039958,-500.0,0.00013273,2]
[401486726,1768263039967,-500.0,0.00013273,2]
[401486728,1768263039976,-500.0,0.00013273,2]
[401486730,1768263039986,-500.0,0.00013273,2]
[401486733,1768263039996,-500.0,0.00013273,2]
[401486734,1768263040007,-500.0,0.00013273,2]
[401486736,1768263040016,-500.0,0.00013273,2]
[401486737,1768263040026,-500.0,0.00013273,2]
[401486738,1768263040036,-500.0,0.00013273,2]
[401486739,1768263040046,-500.0,0.00013273,2]
[401486740,1768263040055,-500.0,0.00013273,2]
[401486741,1768263040065,-500.0,0.00013273,2]
[401486742,1768263040074,-500.0,0.00013273,2]
[401486743,1768263040084,-500.0,0.00013273,2]
[401486744,1768263040094,-500.0,0.00013273,2]
[401486745,1768263040103,-500.0,0.00013273,2]
[401486746,1768263040113,-500.0,0.00013273,2]
[401486747,1768263040122,-500.0,0.00013273,2]
[401486748,1768263040132,-500.0,0.00013273,2]
[401486749,1768263040142,-500.0,0.00013273,2]
[401486750,1768263040152,-500.0,0.00013273,2]
[401486751,1768263040162,-500.0,0.00013273,2]
[401486752,1768263040171,-500.0,0.00013273,2]
[401486753,1768263040180,-500.0,0.00013273,2]
[401486754,1768263040191,-500.0,0.00013273,2]
[401486755,1768263040200,-400.46467622,0.00013273,2]
[401486756,1768263040209,-500.0,0.00013273,2]
[401486757,1768263040219,-500.0,0.00013273,2]
[401486758,1768263040230,-500.0,0.00013273,2]
[401486759,1768263040243,-500.0,0.00013273,2]
[401486760,1768263040253,-500.0,0.00013273,2]
[401486761,1768263040263,-500.0,0.00013273,2]
[401486762,1768263040273,-500.0,0.00013273,2]
[401486763,1768263040282,-500.0,0.00013273,2]
[401486764,1768263040292,-500.0,0.00013273,2]
[401486765,1768263040302,-500.0,0.00013273,2]
[401486766,1768263040311,-500.0,0.00013273,2]
[401486767,1768263040320,-261.32015771,0.00013273,2]
[401486768,1768263040332,-420.0,0.00013568,2]
[401486769,1768263040342,-327.23265373,0.00013569,2]
[401486770,1768263040352,-500.0,0.00013698,2]
[401486771,1768263040361,-500.0,0.00013698,2]
[401486772,1768263040372,-500.0,0.00013698,2]
[401486773,1768263040383,-500.0,0.00013698,2]
[401486774,1768263040393,-500.0,0.00013698,2]
[401486775,1768263040404,-500.0,0.00013698,2]
[401486776,1768263040414,-500.0,0.00013698,2]
[401486777,1768263040424,-500.0,0.00013698,2]
[401486778,1768263040435,-500.0,0.00013698,2]
[401486779,1768263040444,-500.0,0.00013698,2]
[401486780,1768263040454,-500.0,0.00013698,2]
[401486781,1768263040464,-500.0,0.00013698,2]
[401486782,1768263040473,-500.0,0.00013698,2]
[401486783,1768263040483,-500.0,0.00013698,2]
[401486784,1768263040493,-500.0,0.00013698,2]
[401486785,1768263040502,-500.0,0.00013698,2]
[401486786,1768263040512,-329.28962388,0.00013698,2]
[401486787,1768263040521,-58515.3478046,0.00013699,2]
[401486788,1768263040531,-500.0,0.00013699,2]
[401486789,1768263040540,-500.0,0.00013699,2]
[401486790,1768263040550,-500.0,0.00013699,2]
[401486791,1768263040665,-500.0,0.00013699,2]
[401486792,1768263040675,-500.0,0.00013699,2]
[401486793,1768263040684,-500.0,0.00013699,2]
[401486794,1768263040692,-252.89893897,0.00013699,2]
[401486795,1768263040700,-500.0,0.00013699,2]
[401486796,1768263040709,-500.0,0.00013699,2]
[401486797,1768263040717,-500.0,0.00013699,2]